Cogmind - Beta 14 @@@ ROGUE MODE // 2024.12.09 @ 17:15:21 Player: Shiba Result: Self-destructed Performance ------------- Evolutions (2) 1000 Regions Visited (3) 600 Robots Destroyed (42) 210 Value Destroyed (1180) 1180 Prototype IDs (2) 40 Alien Tech Used (0) 0 Bonus (0) 0 TOTAL SCORE: 3030 Bonus ------- None Cogmind --------- Core Integrity 532/550 Matter 249/300 Energy 160/160 System Corruption 0% Temperature Cool (0) Movement Walking (120) Location -8/Materials Parts ------- > --- POWER (1) -------- Light Nuclear Core > --- PROPULSION (3) --- Aluminum Leg Aluminum Leg Aluminum Leg > --- UTILITY (3) ------ Small Storage Unit Medium Armor Plating > --- WEAPON (4) ------- High-powered Shotgun High-powered Shotgun High-powered Shotgun Light Cannon > --- INVENTORY (8) ---- Light Nuclear Core Light Treads Aluminum Leg Aluminum Leg Autogun High-powered Shotgun Katana Peak State ------------ > --- POWER ------------ Light Nuclear Core > --- PROPULSION ------- Aluminum Leg Aluminum Leg Aluminum Leg > --- UTILITY ---------- Small Storage Unit Medium Armor Plating > --- WEAPON ----------- High-powered Shotgun High-powered Shotgun High-powered Shotgun Light Cannon > --- INVENTORY -------- Light Nuclear Core Light Treads Aluminum Leg Aluminum Leg Autogun High-powered Shotgun Katana [Rating: 20] Favorites ----------- Power Ion Engine Engine Ion Engine Power Core Light Nuclear Core Propulsion Aluminum Leg Leg Aluminum Leg Utility Small Storage Unit Device Seismic Detector Storage Small Storage Unit Protection Light Armor Plating Weapon Light Cannon Energy Gun Small Laser Ballistic Gun Light Assault Rifle Ballistic Cannon Light Cannon Special Weapon Welding Torch Slashing Weapon Katana Build | -11 -10 -9 -8 ------- Run | Yrd Mat Mat Mat Slots Evolved 4 | . . 2 2 Power . | . . . . Propulsion 1 | . . . 1 Utility 1 | . . . 1 Weapon 2 | . . 2 . Parts Attached 41 | 8 9 23 1 Power 5 | 2 1 2 . Engine 4 | 2 1 1 . Core 1 | . . 1 . Reactor . | . . . . Propulsion 11 | 2 1 7 1 Treads . | . . . . Leg 11 | 2 1 7 1 Wheel . | . . . . Hover . | . . . . Flight . | . . . . Utility 7 | 2 2 3 . Device 1 | 1 . . . Storage 3 | 1 1 1 . Processor . | . . . . Hackware . | . . . . Protection 3 | . 1 2 . Artifact . | . . . . Weapon 18 | 2 5 11 . Energy Gun 2 | 1 1 . . Energy Cannon . | . . . . Ballistic Gun 10 | 1 1 8 . Ballistic Cannon 3 | . 1 2 . Launcher . | . . . . Special Weapon 2 | . 2 . . Impact Weapon . | . . . . Slashing Weapon 1 | . . 1 . Piercing Weapon . | . . . . Special Melee Weapon . | . . . . Unidentified Prototypes . | . . . . Parts Lost 12 | . 6 6 . Power 1 | . 1 . . Propulsion 1 | . . 1 . Utility 3 | . 1 2 . Weapon 7 | . 4 3 . Highest Loss Streak 5 | . 5 1 . To Critical Strikes . | . . . . Average Slot Usage (%) 98 | . 96 99 90 Engine 9 | . 14 8 . Core 2 | . . 2 9 Leg 23 | . 28 21 27 Device 1 | . 5 . . Storage 13 | . 14 13 9 Protection 7 | . 8 7 9 Energy Gun 1 | . 5 . . Ballistic Gun 17 | . 11 19 27 Ballistic Cannon 18 | . 5 23 9 Peak Build Rating 20 | 7 7 19 20 Average Rating 10 | 5 6 11 20 On Entrance 8 | . 7 7 19 Naked Turns . | . . . . Heaviest Build 30 | 14 17 30 29 Greatest Support 30 | 20 20 20 30 Greatest Overweight (x) 2 | . . 2 . Average Overweight (x) . | . . 1 . Largest Inventory Capacity 8 | 8 8 8 8 Average Capacity 7 | 7 8 8 8 Most Carried 8 | 7 8 8 7 Average Carried 7 | 4 7 7 7 Final Capacity 8 | 8 8 8 8 Final Carried 8 | 7 8 8 7 Class Distribution -------------------- 53% | Tank 26% | Mutant 20% | Gunner Dominant Class ---------------- Mutant | -10/Materials Tank | -9/Materials Tank | -8/Materials Resources | -11 -10 -9 -8 ----------- Run | Yrd Mat Mat Mat Matter Collected 1349 | 239 168 869 73 Remotely . | . . . . Salvage Created 1088 | 22 160 839 67 Parts 89 | 4 14 68 3 Haulers Intercepted . | . . . . Recyclers Shooed 1 | . . 1 . Parts Field Recycled . | . . . . Retrieved Matter . | . . . . Parts Self-Destructed . | . . . . Prevented . | . . . . Kills | -11 -10 -9 -8 ------- Run | Yrd Mat Mat Mat Combat Hostiles Destroyed 35 | . 9 24 2 Guns 15 | . 3 10 2 Cannons 19 | . 5 14 . Classes Destroyed 8 | 1 2 5 . Builder 1 | . . 1 . Tunneler 2 | 1 . 1 . Operator 3 | . . 3 . Watcher 1 | . . 1 . Swarmer 12 | . 6 6 . Grunt 15 | . 3 10 2 Duelist 1 | . . 1 . Sentry 7 | . . 7 . Best Kill Streak 5 | 1 5 5 2 Combat Bots Only 5 | . 5 3 2 Max Kills in Single Turn 3 | 1 1 3 1 Gunslinging . | . . . . Exploded . | . . . . Melee . | . . . . Uniques/NPCs Destroyed . | . . . . Combat | -11 -10 -9 -8 -------- Run | Yrd Mat Mat Mat Hostile Shots Fired 172 | . 88 75 9 Missed 46 | . 26 17 3 Damage Taken 1646 | . 698 859 89 Core 165 | . 78 69 18 Absorbed by Shields . | . . . . Core Remaining (%) 83 | 100 68 82 . Volleys Fired 100 | 1 40 52 7 Largest 4 | 2 2 4 4 Hottest 140 | 60 140 128 110 Shots Fired 293 | 2 79 184 28 Gun 154 | 2 59 72 21 Cannon 136 | . 17 112 7 Launcher . | . . . . Special 3 | . 3 . . Kinetic 267 | 1 54 184 28 Thermal 25 | 1 24 . . Explosive . | . . . . Electromagnetic 1 | . 1 . . Robot Hit Streak 17 | 1 17 7 3 Robot Miss Streak 9 | 1 4 8 9 Penetration Max . | . . . . Secondary Targets . | . . . . Shots Hit Robots 144 | 1 46 86 11 Core Hits 67 | 1 13 47 6 Critical Kills . | . . . . Critical Parts Destroyed . | . . . . Critical Strikes 3 | . . 3 . Blast 3 | . . 3 . Melee Attacks . | . . . . Impact . | . . . . Slashing . | . . . . Piercing . | . . . . Sneak Attacks . | . . . . Combat Hostiles . | . . . . Follow-up Attacks . | . . . . Damage Inflicted 2223 | 13 645 1361 204 Guns 999 | 13 400 422 164 Cannons 1129 | . 154 935 40 Explosions . | . . . . Melee . | . . . . Ramming 23 | . 19 4 . Kinetic 1954 | 13 380 1357 204 Thermal 234 | . 234 . . Explosive . | . . . . Electromagnetic 12 | . 12 . . Impact . | . . . . Slashing . | . . . . Piercing . | . . . . Highest Corruption 4 | . 4 . . Average Corruption 2 | . 2 . . Corruption Purged . | . . . . Corruption Blocked . | . . . . Overload Shots . | . . . . Overflow Damage 28 | . 1 27 . Projectiles . | . . . . Explosions 27 | . . 27 . Melee 1 | . 1 . . Knockbacks 13 | . 3 9 1 Impact . | . . . . Kinetic 13 | . 3 9 1 Secondary . | . . . . Self-Inflicted Damage 192 | . . 192 . Shots 2 | . . 2 . Rammed . | . . . . Targets Rammed 12 | . 10 2 . Kicked 12 | . 10 2 . Crushed . | . . . . Highest Temperature 267 | . 267 255 261 Average Temperature 80 | . 78 77 120 Received Heat Transfer 513 | . 258 201 54 Effects 5 | . 1 4 . Energy Bleed 1 | . . 1 . Interference 4 | . 1 3 . Siege Activations . | . . . . Robots Corrupted 1 | . 1 . . Combat Hostiles 1 | . 1 . . Parts Fried . | . . . . Impact Corruptions 1 | . 1 . . Robots Melted . | . . . . Combat Hostiles . | . . . . Parts Melted . | . . . . Heat Transferred 525 | . 525 . . Parts Sabotaged . | . . . . Parts Stolen . | . . . . Parts Stripped . | . . . . Power Chain Reactions . | . . . . Alert | -11 -10 -9 -8 ------- Run | Yrd Mat Mat Mat Peak Influence 379 | 5 182 379 231 Initial 146 | . 3 19 146 Average 153 | 2 67 187 177 Maximum Alert Level 1 | . . 1 1 Low Security (%) 67 | 100 100 54 65 Level 1 32 | . . 45 34 Level 2 . | . . . . Level 3 . | . . . . Level 4 . | . . . . Level 5 . | . . . . High Security . | . . . . Max Security . | . . . . Squads Dispatched 3 | . 1 1 1 Investigation . | . . . . Extermination . | . . . . Reinforcement 3 | . 1 1 1 Assault . | . . . . Garrison . | . . . . Intercept . | . . . . Searches Triggered . | . . . . Construction Impeded . | . . . . Haulers Reinforced . | . . . . Active Scanning Responses . | . . . . Cargo Convoy Interrupts . | . . . . Stealth | -11 -10 -9 -8 --------- Run | Yrd Mat Mat Mat Distress Signals 4 | . 2 2 . Communications Jammed . | . . . . Distress Signals . | . . . . Times Spotted 70 | . 19 47 4 Peak Tracking Total 6 | . 6 4 2 Tactical Retreats 5 | . 2 3 . Traps | -11 -10 -9 -8 ------- Run | Yrd Mat Mat Mat Traps Triggered 3 | . 3 . . Indirectly . | . . . . Trap Hack Attempts . | . . . . Triggered . | . . . . Disarmed . | . . . . Reprogrammed 3 | . 3 . . Reused . | . . . . Traps Extracted . | . . . . Installed . | . . . . Triggered . | . . . . Machines | -11 -10 -9 -8 ---------- Run | Yrd Mat Mat Mat Machines Disabled 4 | . . 3 1 Max in Single Turn 2 | . . 2 1 Machines Repaired . | . . . . Machines Dismantled . | . . . . Machines Sabotaged . | . . . . Overloaded Fab Kills . | . . . . Hacking | -11 -10 -9 -8 --------- Run | Yrd Mat Mat Mat Machines Accessed 15 | . 6 9 . Terminals 14 | . 6 8 . Fabricators . | . . . . Repair Stations . | . . . . Recycling Units . | . . . . Scanalyzers 1 | . . 1 . Garrison Access . | . . . . Total Hacks 48 | . 25 23 . Successful 29 | . 13 16 . Failed 19 | . 12 7 . Catastrophic 4 | . 2 2 . Database Lockouts . | . . . . Manual 11 | . 8 3 . Terminals 42 | . 25 17 . Fabricators . | . . . . Repair Stations . | . . . . Recycling Units . | . . . . Scanalyzers 6 | . . 6 . Garrison Access . | . . . . Terminal Hacks 19 | . 10 9 . Record 2 | . . 2 . Robot Analysis 1 | . . 1 . Prototype ID Bank 1 | . . 1 . Alert Level 2 | . 1 1 . Unreport Threat 1 | . 1 . . Locate Traps 4 | . 3 1 . Reprogram Traps 1 | . 1 . . Dispatch Records 1 | . . 1 . Transport Status 1 | . 1 . . Investigation Status 1 | . 1 . . Hauler Manifests 1 | . 1 . . Zone Layout 3 | . 1 2 . Fabricator Hacks . | . . . . Repair Station Hacks . | . . . . Recycling Unit Hacks . | . . . . Scanalyzer 6 | . . 6 . Insert Component 3 | . . 3 . Analyze 3 | . . 3 . Garrison Access Hacks . | . . . . Unauthorized Hacks 4 | . 3 1 . Terminals 4 | . 3 1 . Botnet 4 | . 3 1 . Fabricators . | . . . . Repair Stations . | . . . . Recycling Units . | . . . . Scanalyzers . | . . . . Garrison Access . | . . . . Data Cores Recovered 2 | . . 2 . Used 2 | . . 2 . Hacking Detections 12 | . 6 6 . Full Trace Events . | . . . . Feedback Events . | . . . . Feedback Blocked . | . . . . Robot Schematics Acquired . | . . . . Robots Built . | . . . . Authchips . | . . . . Time . | . . . . Total Robot Build Rating . | . . . . Part Schematics Acquired 3 | . . 3 . Parts Built . | . . . . Authchips . | . . . . Time . | . . . . Total Part Build Rating . | . . . . Parts Repaired . | . . . . Time . | . . . . Parts Recycled . | . . . . Recycled Matter . | . . . . Retrieved Matter . | . . . . Retrieved Components . | . . . . Parts Scanalyzed 3 | . . 3 . Part Schematics Acquired 3 | . . 3 . Parts Damaged . | . . . . Bothacking | -11 -10 -9 -8 ------------ Run | Yrd Mat Mat Mat Used RIF Installer . | . . . . Robots Hacked . | . . . . Non-combat . | . . . . Combat . | . . . . Robot Hacks Applied . | . . . . Relay Couplers Released . | . . . . Fabnet Peak Effective % . | . . . . Robots Rewired . | . . . . Allies Hacked . | . . . . Hacks Repelled . | . . . . Allies | -11 -10 -9 -8 -------- Run | Yrd Mat Mat Mat Total Allies . | . . . . Largest Group . | . . . . Highest-Rated Group . | . . . . Highest-Rated Ally . | . . . . Total Orders . | . . . . Ally Attacks . | . . . . Total Damage . | . . . . Kills . | . . . . Allies Corrupted . | . . . . Allies Melted . | . . . . Intel | -11 -10 -9 -8 ------- Run | Yrd Mat Mat Mat Robot Analysis Total 1 | . . 1 . Derelict Logs Recovered . | . . . . Drone Launches . | . . . . Drone Recoveries . | . . . . Exploration | -11 -10 -9 -8 ------------- Run | Yrd Mat Mat Mat Turns Passed 3556 | 99 855 2430 172 Spaces Moved 1724 | 67 493 1060 104 Core 3 | 3 . . . Treads . | . . . . Legs 1721 | 64 493 1060 104 Wheels . | . . . . Hover . | . . . . Flight . | . . . . Fastest Speed 50 | 50 120 120 120 Average Speed 163 | 116 120 190 120 Slowest Speed 260 | 120 120 260 120 Overloaded Moves . | . . . . Propulsion Burnouts . | . . . . Robots Hopped . | . . . . Cave-ins Triggered . | . . . . Exploration Rate (%) 45 | 4 78 82 19 Regions Visited 3 Branch Regions . Pre-discovered Areas . | . . . . Known Exits Taken . | . . . . Unknown Exits Taken 3 | 1 1 1 . Scrap Searched . | . . . . Spaces Dug . | . . . . Terrain Destroyed 38 | . . 38 . Melee . | . . . . Projectile . | . . . . AOE 38 | . . 38 . Terrain Rammed . | . . . . Walls Destroyed . | . . . . Machines Disabled . | . . . . Actions | -11 -10 -9 -8 --------- Run | Yrd Mat Mat Mat Total 2250 | 81 673 1363 133 Wait 335 | . 109 205 21 Move 1721 | 66 492 1059 104 Hop . | . . . . Pick Up 20 | 6 7 7 . Fast Attach 16 | 7 5 4 . Attach 10 | . 3 6 1 Detach 1 | . 1 . . Swap 15 | 1 1 13 . Drop 20 | . 5 15 . Fire 100 | 1 40 52 7 Melee . | . . . . Ram . | . . . . Kick 12 | . 10 2 . Crush . | . . . . Escape Stasis . | . . . . Rewire . | . . . . Trap . | . . . . Miscellaneous . | . . . . Route ------- -11/Scrapyard -10/Materials (discovered 3 exits: *Mat x2 / [*Min]) -9/Materials (discovered 3 exits: [*Mat] / [*Min x2]) -8/Materials History --------- Turn | Location | Event 2 | -11/Scrapyard | Met Revision 17 2 | -11/Scrapyard | Discovered new exit (range 16) 100 | -11/Scrapyard | Entered Materials 309 | -10/Materials | Build established: Mutant 470 | -10/Materials | Lost 5 parts (1u4w) 497 | -10/Materials | Discovered new exit (range 10) 569 | -10/Materials | Discovered new exit (range 16) 925 | -10/Materials | Discovered new exit (range 10) 955 | -10/Materials | Entered another Materials area 955 | -9/Materials | Evolved 2 slots: Weapon x2 1242 | -9/Materials | Build established: Tank 1346 | -9/Materials | Discovered new exit (range 8) 2645 | -9/Materials | Build established: Gunner 3095 | -9/Materials | Discovered new exit (range 21) 3356 | -9/Materials | Discovered new exit (range 15) 3358 | -9/Materials | Build established: Tank 3385 | -9/Materials | Entered another Materials area 3385 | -8/Materials | Evolved 2 slots: Propulsion x1, Utility x1 3557 | -8/Materials | Self-destructed Last Messages --------------- Distant sounds of combat echo through the corridors. PARAMETERS=PROPULSION+1,UTILITY+1 LOCATION=UNKNOWN GOAL=ESCAPE 03414_ O-16 Technician: "IFF HANDSHAKE FAILED. SECURING TERMINAL." 03424_ ALERT: Hostiles spotted, dispatching reinforcements to Terminal M002. 03483_ G-47 Trooper destroyed. 03489_ R-06 Scavenger collects Aluminum Leg. 03492_ R-06 Scavenger collects Particle Gun. 03497_ G-47 Trooper destroyed. 03497_ R-06 Scavenger collects Particle Gun. 03500_ Acquired 67 matter. 03501_ Acquired 3 matter. 03515_ K-01 Serf collects debris. 03541_ Purification Channel disabled. 03541_ W-25 Informer knocked back. 03546_ Acquired 3 matter. Map ----- +----------------------------------------------------+ | ?????????????????????????????????????????????????? | | ??????????????????????????? ???????????????????? | | ????????????????????????? ???????????????????? | | ????????????????????????# ???????????????????? | | ????????????????????????# ???????????????????? | | ????????????????????????# #??????????? ????? | | ????????????????????????+ #??????????# #???? | | ????????????????????????# #??????????# +???? | | ????????????????????????# #??????????# #???? | | ????????????????????????# #??????????# ##### | | ????????????????????????# #??????????# | | ????????????????????????# #?????????## ! | | ????????????????????????# #??????????T | | ????????????????????????# #??????????# | | ????????????????????????# #??????????# """ | | ?????????????????????? + ############ """ | | ????????????????????????# """ | | ????????????????????????# ######### [ """ | | ????????????????????????# #???????# | | ????????????????????????# #???????# ! | | ???????????????????########+#########?# | | ???????????????????# #####/#####"T" | | ???????????????????# " """"" # #### | | ???????????????????# """""""" # #??? | | ???????????????????# """ "" # #??? | | ???????????????????# ! @ + #??? | | ???????????????????# " """"" # #??? | | ???????????????????# """"""""" # #??? | | ???????????????????# """ """ # #??? | | ???????????????????# # #??? | | ???????????????????############################??? | | ??????????????????????????????????????????######?? | | ??????????????????????????????????????????? ? | | ???????????????????????????????????????????"S ? | | ??????????????????????????????????????????#""" | | ??????????????????????????????????????????# "" | | ??????????????????????????????????????????? | | ??????????????????????????????????????????# """ | | ??????????????????????????????????????????# """ | | ??????????????????????????????????????????# """ | | ??????????????????????????????????????????? | | ??????????????????????????????????????????######## | | ???????????????????????????????????????? | | ???????????????????????????????????????? | | ???????????????????????????????????????? | | ????????????????????????????????????????########## | | ?????????????????????????????????????????????????? | | ?????????????????????????????????????????????????? | | ?????????????????????????????????????????????????? | | ?????????????????????????????????????????????????? | +----------------------------------------------------+ Best States ------------- Heat Dissipation 31 Energy Generation 14 Energy Capacity 265 Matter Stores 300 Matter Capacity 500 Sight Range 16 Terrain Scan Density 10 Armor Coverage 225 Evasion (%) 55 Item Schematics ----------------- Lgt. Armor Plating | -9/Materials | Scanalyzed Aluminum Leg | -9/Materials | Scanalyzed Katana | -9/Materials | Scanalyzed Robot Schematics ------------------ None Fabricated ------------ Nothing Alien Tech Used ----------------- None Achievements -------------- Dynamic Key Challenges ------------ None Game ------ Seed CompanionSmallObliterator Manual? 0 Play Time 00:29:52 Cumulative 17.1 hours Start 2024.09.01 @ 22:32:33 End 2024.12.09 @ 17:15:21 Sessions 3 Manual Loads 0 Difficulty Rogue Special Mode None Game No. 36 Rogue 36 Adventurer 0 Explorer 0 Win Type - Total 0 Types 0/0/0/0/0/0/0/0/0 Lore% 6 Gallery% 20 Achievement% 23 Wizard Run 0 Options --------- Layout 2 ASCII 0 Keyboard 0 Movement Mouse Keybinds 0 Fullscreen 2 Font 24/Terminus Map View 50x44 Zoom Use 0% Tactical HUD 1 Map Filters NONE Filters NONE Steam 1 RUN: de4247bf-6882-476c-b8d4-9152e39a4177